{"text_format":"1","workbook":"xlsx","n_sheets":18,"sheets":["Page de garde","Cellule d'appui","Liste Objectifs","O1","O2","O3","O4","O5","O6","O7","O8","O9","O10","Récap Objectifs","Dico","Thèmes","Obj","Etat"],"not_rendered":{"charts":1,"images":6,"macros":1,"external_links":0,"defined_names":14,"comments":11,"pivot_tables":0},"unopened":[],"bounds":{"document_bytes":16777216,"sheet_cells":100000,"rows_first":2000,"rows_last":500,"rows_between":2000,"halvings":0,"cell_chars":16384,"cell_head_chars":4096},"cells_cut":0,"cells_raw":0,"read":"whole","date_system":"1900"}

{"sheet":"Page de garde","index":0,"n_rows":28,"n_cols":10,"rows_kept":28,"cut":false,"hidden":false,"merged":[[2,9,13,13],[1,0,2,1],[1,2,2,7],[20,5,24,6],[16,2,17,6],[12,2,13,6],[8,2,9,6],[7,0,7,2],[20,2,21,3],[8,1,9,1],[12,1,13,1],[16,1,17,1],[20,1,21,1],[20,4,21,4],[22,4,24,4]]}
[null,null,null,null,null,null,null,null,null,"NOTE D'INFORMATION"]
[null,null,"OBJECTIFS & PLAN D'ACTION"]
[null,null,null,null,null,null,null,null,null,"Si Excel bloque automatiquement l’exécution des macros\n\n1.\tFermer le fichier.\n2.\tFaire un clic-droit sur le fichier téléchargé.\n3.\tAller dans les Propriétés.\n4.\tEn bas de l'onglet « Général », cocher « Débloquer » et cliquer sur « OK ».\n5.\tRouvrir le fichier."]
[]
[]
[null,"INFORMATIONS ÉTABLISSEMENT"]
[]
[]
[null,"Nom de l'école ou de l'établissement","ECOLE…"]
[]
[]
[]
[null,"Ville","SAINT…"]
[]
[]
[]
[null,"Diocèse"]
[]
[]
[]
[null,"Date de saisie ",{"$f":"TODAY()","v":"2025-09-03"},null,"Logo"]
[]
[]
[]
[]
[]
[]
["Plan \"BOUSSOLE\" de l'Enseignement catholique / OBJECTIFS & PLAN D'ACTION",null,null,null,null,"© SGEC / Version 2025","© SGEC / V-2023-07 "]

{"sheet":"Cellule d'appui","index":1,"n_rows":20,"n_cols":7,"rows_kept":20,"cut":false,"hidden":false,"merged":[[1,0,2,1],[1,2,2,7],[9,1,9,2],[8,1,8,2],[7,1,7,2],[9,5,9,7],[7,5,7,7],[8,5,8,7],[9,3,9,4],[8,3,8,4],[7,3,7,4],[12,1,12,2],[11,1,11,2],[10,1,10,2],[12,5,12,7],[11,5,11,7],[10,5,10,7],[12,3,12,4],[11,3,11,4],[10,3,10,4],[15,1,15,2],[14,1,14,2],[13,1,13,2],[15,5,15,7],[14,5,14,7],[13,5,13,7],[15,3,15,4],[14,3,14,4],[13,3,13,4],[17,1,17,2],[16,1,16,2],[17,5,17,7],[16,5,16,7],[17,3,17,4],[16,3,16,4]]}
[]
[null,null,"OBJECTIFS & PLAN D'ACTION"]
[]
[]
[]
[null,"COMPOSITION DE LA CELLULE D'APPUI"]
[]
["Nb.","Nom",null,"Prénom",null,"Fonction"]
[1,"NOM",null,"Prénom",null,"Fonction"]
[2,"NOM",null,"Prénom",null,"Fonction"]
[3,"NOM",null,"Prénom",null,"Fonction"]
[]
[]
[]
[]
[]
[]
[]
[]
["Plan \"BOUSSOLE\" de l'Enseignement catholique / OBJECTIFS & PLAN D'ACTION",null,null,null,null,"© SGEC / Version 2025","© SGEC / V-2023-07 "]

{"sheet":"Liste Objectifs","index":2,"n_rows":20,"n_cols":7,"rows_kept":20,"cut":false,"hidden":false,"merged":[[13,1,13,2],[12,1,12,2],[11,1,11,2],[1,0,2,1],[1,2,2,7],[10,4,10,7],[11,4,11,7],[8,4,8,7],[9,4,9,7],[7,4,7,7],[10,1,10,2],[9,1,9,2],[8,1,8,2],[7,1,7,2],[17,1,17,2],[16,1,16,2],[15,1,15,2],[14,1,14,2],[16,4,16,7],[17,4,17,7],[0,9,2,11],[12,4,12,7],[13,4,13,7],[14,4,14,7],[15,4,15,7]]}
[]
[null,null,"OBJECTIFS & PLAN D'ACTION"]
[]
[]
[]
[null,"LISTE DES OBJECTIFS"]
[]
["Réf.","Indicateur visé",null,"Échéance","Thématique"]
["Obj. #1","Indicateur",null,"2023-09-01","Sélectionner la thématique à laquelle est rattachée l'indicateur"]
["Obj. #2","Indicateur",null,"2023-09-01","Sélectionner la thématique à laquelle est rattachée l'indicateur"]
["Obj. #3","Indicateur",null,"2023-09-01","Sélectionner la thématique à laquelle est rattachée l'indicateur"]
[]
[]
[]
[]
[]
[]
[]
[]
["Plan \"BOUSSOLE\" de l'Enseignement catholique / OBJECTIFS & PLAN D'ACTION",null,null,null,null,"© SGEC / Version 2025","© SGEC / V-2023-07 "]

{"sheet":"O1","index":3,"n_rows":25,"n_cols":7,"rows_kept":25,"cut":false,"hidden":false,"merged":[[21,4,21,7],[22,4,22,7],[10,2,10,4],[11,2,11,4],[13,0,13,3],[14,0,22,3],[18,4,20,7],[14,4,16,7],[17,4,17,7],[13,4,13,7],[8,1,8,2],[8,4,8,7],[0,9,2,11],[1,0,2,1],[1,2,2,7],[7,1,7,2],[7,4,7,7]]}
[]
[null,null,"OBJECTIFS & PLAN D'ACTION"]
[]
[]
[]
[null,"OBJECTIF #1"]
[]
["Réf.","Indicateur visé",null,"Échéance","Thématique"]
[{"$f":"'Liste Objectifs'!A9","v":"Obj. #1"},{"$f":"'Liste Objectifs'!B9","v":"Indicateur"},null,{"$f":"'Liste Objectifs'!D9","v":"2023-09-01"},{"$f":"'Liste Objectifs'!E9","v":"Sélectionner la thématique à laquelle est rattachée l'indicateur"}]
[]
[null,null,"Personne responsable"]
[null,null,"NOM Prénom"]
[]
["Détails de la mise en œuvre",null,null,null,"Personnes impliquées"]
["Actions, Calendrier, Budget… ",null,null,null,"Personnes associées à la mise en œuvre "]
[]
[]
[null,null,null,null,"Critères de réussite"]
[null,null,null,null,"Indice(s) permettant d'évaluer l'efficacité et la pertinence de la mise en œuvre"]
[]
[]
[null,null,null,null,"État d'avancement"]
[null,null,null,null,"Sélectionner l'état d'avancement"]
[]
["Plan \"BOUSSOLE\" de l'Enseignement catholique / OBJECTIFS & PLAN D'ACTION",null,null,null,null,"© SGEC / Version 2025","© SGEC / V-2023-07 "]

{"sheet":"O2","index":4,"n_rows":25,"n_cols":7,"rows_kept":25,"cut":false,"hidden":false,"merged":[[10,2,10,4],[11,2,11,4],[13,0,13,3],[13,4,13,7],[14,0,22,3],[14,4,16,7],[17,4,17,7],[18,4,20,7],[21,4,21,7],[22,4,22,7],[8,1,8,2],[8,4,8,7],[0,9,2,11],[1,0,2,1],[1,2,2,7],[7,1,7,2],[7,4,7,7]]}
[]
[null,null,"OBJECTIFS & PLAN D'ACTION"]
[]
[]
[]
[null,"OBJECTIF #2"]
[]
["Réf.","Indicateur visé",null,"Échéance","Thématique"]
[{"$f":"'Liste Objectifs'!A10","v":"Obj. #2"},{"$f":"'Liste Objectifs'!B10","v":"Indicateur"},null,{"$f":"'Liste Objectifs'!D10","v":"2023-09-01"},{"$f":"'Liste Objectifs'!E10","v":"Sélectionner la thématique à laquelle est rattachée l'indicateur"}]
[]
[null,null,"Personne responsable"]
[null,null,"NOM Prénom"]
[]
["Détails de la mise en œuvre",null,null,null,"Personnes impliquées"]
["Actions, Calendrier, Budget… ",null,null,null,"Personnes associées à la mise en œuvre "]
[]
[]
[null,null,null,null,"Critères de réussite"]
[null,null,null,null,"Indice(s) permettant d'évaluer l'efficacité et la pertinence de la mise en œuvre"]
[]
[]
[null,null,null,null,"État d'avancement"]
[null,null,null,null,"Sélectionner l'état d'avancement"]
[]
["Plan \"BOUSSOLE\" de l'Enseignement catholique / OBJECTIFS & PLAN D'ACTION",null,null,null,null,"© SGEC / Version 2025","© SGEC / V-2023-07 "]

{"sheet":"O3","index":5,"n_rows":25,"n_cols":7,"rows_kept":25,"cut":false,"hidden":false,"merged":[[10,2,10,4],[11,2,11,4],[13,0,13,3],[13,4,13,7],[14,0,22,3],[14,4,16,7],[17,4,17,7],[18,4,20,7],[21,4,21,7],[22,4,22,7],[8,1,8,2],[8,4,8,7],[0,9,2,11],[1,0,2,1],[1,2,2,7],[7,1,7,2],[7,4,7,7]]}
[]
[null,null,"OBJECTIFS & PLAN D'ACTION"]
[]
[]
[]
[null,"OBJECTIF #3"]
[]
["Réf.","Indicateur visé",null,"Échéance","Thématique"]
[{"$f":"'Liste Objectifs'!A11","v":"Obj. #3"},{"$f":"'Liste Objectifs'!B11","v":"Indicateur"},null,{"$f":"'Liste Objectifs'!D11","v":"2023-09-01"},{"$f":"'Liste Objectifs'!E11","v":"Sélectionner la thématique à laquelle est rattachée l'indicateur"}]
[]
[null,null,"Personne responsable"]
[null,null,"NOM Prénom"]
[]
["Détails de la mise en œuvre",null,null,null,"Personnes impliquées"]
["Actions, Calendrier, Budget… ",null,null,null,"Personnes associées à la mise en œuvre "]
[]
[]
[null,null,null,null,"Critères de réussite"]
[null,null,null,null,"Indice(s) permettant d'évaluer l'efficacité et la pertinence de la mise en œuvre"]
[]
[]
[null,null,null,null,"État d'avancement"]
[null,null,null,null,"Sélectionner l'état d'avancement"]
[]
["Plan \"BOUSSOLE\" de l'Enseignement catholique / OBJECTIFS & PLAN D'ACTION",null,null,null,null,"© SGEC / Version 2025","© SGEC / V-2023-07 "]

{"sheet":"O4","index":6,"n_rows":25,"n_cols":7,"rows_kept":25,"cut":false,"hidden":false,"merged":[[10,2,10,4],[11,2,11,4],[13,0,13,3],[13,4,13,7],[14,0,22,3],[14,4,16,7],[17,4,17,7],[18,4,20,7],[21,4,21,7],[22,4,22,7],[8,1,8,2],[8,4,8,7],[0,9,2,11],[1,0,2,1],[1,2,2,7],[7,1,7,2],[7,4,7,7]]}
[]
[null,null,"OBJECTIFS & PLAN D'ACTION"]
[]
[]
[]
[null,"OBJECTIF #4"]
[]
["Réf.","Indicateur visé",null,"Échéance","Thématique"]
[{"$f":"'Liste Objectifs'!A12","v":0},{"$f":"'Liste Objectifs'!B12","v":0},null,{"$f":"'Liste Objectifs'!D12","v":"00:00:00"},{"$f":"'Liste Objectifs'!E12","v":0}]
[]
[null,null,"Personne responsable"]
[null,null,"NOM Prénom"]
[]
["Détails de la mise en œuvre",null,null,null,"Personnes impliquées"]
["Actions, Calendrier, Budget… ",null,null,null,"Personnes associées à la mise en œuvre "]
[]
[]
[null,null,null,null,"Critères de réussite"]
[null,null,null,null,"Indice(s) permettant d'évaluer l'efficacité et la pertinence de la mise en œuvre"]
[]
[]
[null,null,null,null,"État d'avancement"]
[null,null,null,null,"Sélectionner l'état d'avancement"]
[]
["Plan \"BOUSSOLE\" de l'Enseignement catholique / OBJECTIFS & PLAN D'ACTION",null,null,null,null,"© SGEC / Version 2025","© SGEC / V-2023-07 "]

{"sheet":"O5","index":7,"n_rows":25,"n_cols":7,"rows_kept":25,"cut":false,"hidden":false,"merged":[[10,2,10,4],[11,2,11,4],[13,0,13,3],[13,4,13,7],[14,0,22,3],[14,4,16,7],[17,4,17,7],[18,4,20,7],[21,4,21,7],[22,4,22,7],[8,1,8,2],[8,4,8,7],[0,9,2,11],[1,0,2,1],[1,2,2,7],[7,1,7,2],[7,4,7,7]]}
[]
[null,null,"OBJECTIFS & PLAN D'ACTION"]
[]
[]
[]
[null,"OBJECTIF #5"]
[]
["Réf.","Indicateur visé",null,"Échéance","Thématique"]
[{"$f":"'Liste Objectifs'!A13","v":0},{"$f":"'Liste Objectifs'!B13","v":0},null,{"$f":"'Liste Objectifs'!D13","v":"00:00:00"},{"$f":"'Liste Objectifs'!E13","v":0}]
[]
[null,null,"Personne responsable"]
[null,null,"NOM Prénom"]
[]
["Détails de la mise en œuvre",null,null,null,"Personnes impliquées"]
["Actions, Calendrier, Budget… ",null,null,null,"Personnes associées à la mise en œuvre "]
[]
[]
[null,null,null,null,"Critères de réussite"]
[null,null,null,null,"Indice(s) permettant d'évaluer l'efficacité et la pertinence de la mise en œuvre"]
[]
[]
[null,null,null,null,"État d'avancement"]
[null,null,null,null,"Sélectionner l'état d'avancement"]
[]
["Plan \"BOUSSOLE\" de l'Enseignement catholique / OBJECTIFS & PLAN D'ACTION",null,null,null,null,"© SGEC / Version 2025","© SGEC / V-2023-07 "]

{"sheet":"O6","index":8,"n_rows":25,"n_cols":7,"rows_kept":25,"cut":false,"hidden":false,"merged":[[10,2,10,4],[11,2,11,4],[13,0,13,3],[13,4,13,7],[14,0,22,3],[14,4,16,7],[17,4,17,7],[18,4,20,7],[21,4,21,7],[22,4,22,7],[8,1,8,2],[8,4,8,7],[0,9,2,11],[1,0,2,1],[1,2,2,7],[7,1,7,2],[7,4,7,7]]}
[]
[null,null,"OBJECTIFS & PLAN D'ACTION"]
[]
[]
[]
[null,"OBJECTIF #6"]
[]
["Réf.","Indicateur visé",null,"Échéance","Thématique"]
[{"$f":"'Liste Objectifs'!A14","v":0},{"$f":"'Liste Objectifs'!B14","v":0},null,{"$f":"'Liste Objectifs'!D14","v":"00:00:00"},{"$f":"'Liste Objectifs'!E14","v":0}]
[]
[null,null,"Personne responsable"]
[null,null,"NOM Prénom"]
[]
["Détails de la mise en œuvre",null,null,null,"Personnes impliquées"]
["Actions, Calendrier, Budget… ",null,null,null,"Personnes associées à la mise en œuvre "]
[]
[]
[null,null,null,null,"Critères de réussite"]
[null,null,null,null,"Indice(s) permettant d'évaluer l'efficacité et la pertinence de la mise en œuvre"]
[]
[]
[null,null,null,null,"État d'avancement"]
[null,null,null,null,"Sélectionner l'état d'avancement"]
[]
["Plan \"BOUSSOLE\" de l'Enseignement catholique / OBJECTIFS & PLAN D'ACTION",null,null,null,null,"© SGEC / Version 2025","© SGEC / V-2023-07 "]

{"sheet":"O7","index":9,"n_rows":25,"n_cols":7,"rows_kept":25,"cut":false,"hidden":false,"merged":[[10,2,10,4],[11,2,11,4],[13,0,13,3],[13,4,13,7],[14,0,22,3],[14,4,16,7],[17,4,17,7],[18,4,20,7],[21,4,21,7],[22,4,22,7],[8,1,8,2],[8,4,8,7],[0,9,2,11],[1,0,2,1],[1,2,2,7],[7,1,7,2],[7,4,7,7]]}
[]
[null,null,"OBJECTIFS & PLAN D'ACTION"]
[]
[]
[]
[null,"OBJECTIF #7"]
[]
["Réf.","Indicateur visé",null,"Échéance","Thématique"]
[{"$f":"'Liste Objectifs'!A15","v":0},{"$f":"'Liste Objectifs'!B15","v":0},null,{"$f":"'Liste Objectifs'!D15","v":"00:00:00"},{"$f":"'Liste Objectifs'!E15","v":0}]
[]
[null,null,"Personne responsable"]
[null,null,"NOM Prénom"]
[]
["Détails de la mise en œuvre",null,null,null,"Personnes impliquées"]
["Actions, Calendrier, Budget… ",null,null,null,"Personnes associées à la mise en œuvre "]
[]
[]
[null,null,null,null,"Critères de réussite"]
[null,null,null,null,"Indice(s) permettant d'évaluer l'efficacité et la pertinence de la mise en œuvre"]
[]
[]
[null,null,null,null,"État d'avancement"]
[null,null,null,null,"Sélectionner l'état d'avancement"]
[]
["Plan \"BOUSSOLE\" de l'Enseignement catholique / OBJECTIFS & PLAN D'ACTION",null,null,null,null,"© SGEC / Version 2025","© SGEC / V-2023-07 "]

{"sheet":"O8","index":10,"n_rows":25,"n_cols":7,"rows_kept":25,"cut":false,"hidden":false,"merged":[[10,2,10,4],[11,2,11,4],[13,0,13,3],[13,4,13,7],[14,0,22,3],[14,4,16,7],[17,4,17,7],[18,4,20,7],[21,4,21,7],[22,4,22,7],[8,1,8,2],[8,4,8,7],[0,9,2,11],[1,0,2,1],[1,2,2,7],[7,1,7,2],[7,4,7,7]]}
[]
[null,null,"OBJECTIFS & PLAN D'ACTION"]
[]
[]
[]
[null,"OBJECTIF #8"]
[]
["Réf.","Indicateur visé",null,"Échéance","Thématique"]
[{"$f":"'Liste Objectifs'!A16","v":0},{"$f":"'Liste Objectifs'!B16","v":0},null,{"$f":"'Liste Objectifs'!D16","v":"00:00:00"},{"$f":"'Liste Objectifs'!E16","v":0}]
[]
[null,null,"Personne responsable"]
[null,null,"NOM Prénom"]
[]
["Détails de la mise en œuvre",null,null,null,"Personnes impliquées"]
["Actions, Calendrier, Budget… ",null,null,null,"Personnes associées à la mise en œuvre "]
[]
[]
[null,null,null,null,"Critères de réussite"]
[null,null,null,null,"Indice(s) permettant d'évaluer l'efficacité et la pertinence de la mise en œuvre"]
[]
[]
[null,null,null,null,"État d'avancement"]
[null,null,null,null,"Sélectionner l'état d'avancement"]
[]
["Plan \"BOUSSOLE\" de l'Enseignement catholique / OBJECTIFS & PLAN D'ACTION",null,null,null,null,"© SGEC / Version 2025","© SGEC / V-2023-07 "]

{"sheet":"O9","index":11,"n_rows":25,"n_cols":7,"rows_kept":25,"cut":false,"hidden":false,"merged":[[10,2,10,4],[11,2,11,4],[13,0,13,3],[13,4,13,7],[14,0,22,3],[14,4,16,7],[17,4,17,7],[18,4,20,7],[21,4,21,7],[22,4,22,7],[8,1,8,2],[8,4,8,7],[0,9,2,11],[1,0,2,1],[1,2,2,7],[7,1,7,2],[7,4,7,7]]}
[]
[null,null,"OBJECTIFS & PLAN D'ACTION"]
[]
[]
[]
[null,"OBJECTIF #9"]
[]
["Réf.","Indicateur visé",null,"Échéance","Thématique"]
[{"$f":"'Liste Objectifs'!A17","v":0},{"$f":"'Liste Objectifs'!B17","v":0},null,{"$f":"'Liste Objectifs'!D17","v":"00:00:00"},{"$f":"'Liste Objectifs'!E17","v":0}]
[]
[null,null,"Personne responsable"]
[null,null,"NOM Prénom"]
[]
["Détails de la mise en œuvre",null,null,null,"Personnes impliquées"]
["Actions, Calendrier, Budget… ",null,null,null,"Personnes associées à la mise en œuvre "]
[]
[]
[null,null,null,null,"Critères de réussite"]
[null,null,null,null,"Indice(s) permettant d'évaluer l'efficacité et la pertinence de la mise en œuvre"]
[]
[]
[null,null,null,null,"État d'avancement"]
[null,null,null,null,"Sélectionner l'état d'avancement"]
[]
["Plan \"BOUSSOLE\" de l'Enseignement catholique / OBJECTIFS & PLAN D'ACTION",null,null,null,null,"© SGEC / Version 2025","© SGEC / V-2023-07 "]

{"sheet":"O10","index":12,"n_rows":25,"n_cols":7,"rows_kept":25,"cut":false,"hidden":false,"merged":[[10,2,10,4],[11,2,11,4],[13,0,13,3],[13,4,13,7],[14,0,22,3],[14,4,16,7],[17,4,17,7],[18,4,20,7],[21,4,21,7],[22,4,22,7],[8,1,8,2],[8,4,8,7],[0,9,2,11],[1,0,2,1],[1,2,2,7],[7,1,7,2],[7,4,7,7]]}
[]
[null,null,"OBJECTIFS & PLAN D'ACTION"]
[]
[]
[]
[null,"OBJECTIF #10"]
[]
["Réf.","Indicateur visé",null,"Échéance","Thématique"]
[{"$f":"'Liste Objectifs'!A18","v":0},{"$f":"'Liste Objectifs'!B18","v":0},null,{"$f":"'Liste Objectifs'!D18","v":"00:00:00"},{"$f":"'Liste Objectifs'!E18","v":0}]
[]
[null,null,"Personne responsable"]
[null,null,"NOM Prénom"]
[]
["Détails de la mise en œuvre",null,null,null,"Personnes impliquées"]
["Actions, Calendrier, Budget… ",null,null,null,"Personnes associées à la mise en œuvre "]
[]
[]
[null,null,null,null,"Critères de réussite"]
[null,null,null,null,"Indice(s) permettant d'évaluer l'efficacité et la pertinence de la mise en œuvre"]
[]
[]
[null,null,null,null,"État d'avancement"]
[null,null,null,null,"Sélectionner l'état d'avancement"]
[]
["Plan \"BOUSSOLE\" de l'Enseignement catholique / OBJECTIFS & PLAN D'ACTION",null,null,null,null,"© SGEC / Version 2025","© SGEC / V-2023-07 "]

{"sheet":"Récap Objectifs","index":13,"n_rows":20,"n_cols":10,"rows_kept":20,"cut":false,"hidden":false,"merged":[[15,1,15,2],[16,1,16,2],[17,1,17,2],[8,4,17,7],[12,1,12,2],[13,1,13,2],[14,1,14,2],[9,1,9,2],[10,1,10,2],[11,1,11,2],[8,1,8,2],[0,9,2,11],[1,0,2,1],[1,2,2,7],[7,1,7,2],[7,4,7,7]]}
[null,null,null,null,null,null,null,null,null,"Extraction du classeur\nau format PDF"]
[null,null,"OBJECTIFS & PLAN D'ACTION"]
[]
[]
[]
[null,"RÉCAPITULATIF DE PROGRESSION DES OBJECTIFS"]
[]
["Réf.","Indicateur visé",null,"État","Anneau de progression"]
[{"$f":"'Liste Objectifs'!A9","v":"Obj. #1"},{"$f":"'Liste Objectifs'!B9","v":"Indicateur"},null,{"$f":"'O1'!E23","v":"Sélectionner l'état d'avancement"},"\n\n\n\n…"]
[{"$f":"'Liste Objectifs'!A10","v":"Obj. #2"},{"$f":"'Liste Objectifs'!B10","v":"Indicateur"},null,{"$f":"'O2'!E23","v":"Sélectionner l'état d'avancement"}]
[{"$f":"'Liste Objectifs'!A11","v":"Obj. #3"},{"$f":"'Liste Objectifs'!B11","v":"Indicateur"},null,{"$f":"'O3'!E23","v":"Sélectionner l'état d'avancement"}]
[{"$f":"'Liste Objectifs'!A12","v":0},{"$f":"'Liste Objectifs'!B12","v":0},null,{"$f":"'O4'!E23","v":"Sélectionner l'état d'avancement"},null,null,null,null,null,{"$f":"COUNTIF(D9:D18,\"A faire\")","v":0}]
[{"$f":"'Liste Objectifs'!A13","v":0},{"$f":"'Liste Objectifs'!B13","v":0},null,{"$f":"'O5'!E23","v":"Sélectionner l'état d'avancement"},null,null,null,null,null,{"$f":"COUNTIF(D9:D18,\"En cours\")","v":0}]
[{"$f":"'Liste Objectifs'!A14","v":0},{"$f":"'Liste Objectifs'!B14","v":0},null,{"$f":"'O6'!E23","v":"Sélectionner l'état d'avancement"},null,null,null,null,null,{"$f":"COUNTIF(D9:D18,\"Atteint\")","v":0}]
[{"$f":"'Liste Objectifs'!A15","v":0},{"$f":"'Liste Objectifs'!B15","v":0},null,{"$f":"'O7'!E23","v":"Sélectionner l'état d'avancement"}]
[{"$f":"'Liste Objectifs'!A16","v":0},{"$f":"'Liste Objectifs'!B16","v":0},null,{"$f":"'O8'!E23","v":"Sélectionner l'état d'avancement"}]
[{"$f":"'Liste Objectifs'!A17","v":0},{"$f":"'Liste Objectifs'!B17","v":0},null,{"$f":"'O9'!E23","v":"Sélectionner l'état d'avancement"}]
[{"$f":"'Liste Objectifs'!A18","v":0},{"$f":"'Liste Objectifs'!B18","v":0},null,{"$f":"'O10'!E23","v":"Sélectionner l'état d'avancement"}]
[]
["Plan \"BOUSSOLE\" de l'Enseignement catholique / OBJECTIFS & PLAN D'ACTION",null,null,null,null,"© SGEC / Version 2025","© SGEC / V-2023-07 "]

{"sheet":"Dico","index":14,"n_rows":105,"n_cols":2,"rows_kept":105,"cut":false,"hidden":true,"merged":[]}
[]
[null,"Diocèse"]
[]
[null,"DIOCÈSE D'AGEN"]
[null,"DIOCÈSE D'AIRE & DAX"]
[null,"DIOCÈSE D'AIX EN PROVENCE"]
[null,"DIOCÈSE D'AJACCIO"]
[null,"DIOCÈSE D'ALBI"]
[null,"DIOCÈSE D'AMIENS"]
[null,"DIOCÈSE D'ANGERS"]
[null,"DIOCÈSE D'ANGOULEME"]
[null,"DIOCÈSE D'ANNECY"]
[null,"DIOCÈSE D'ARRAS"]
[null,"DIOCÈSE D'AUCH"]
[null,"DIOCÈSE D'AUTUN"]
[null,"DIOCÈSE D'AVIGNON"]
[null,"DIOCÈSE DE BAYEUX-LISIEUX"]
[null,"DIOCÈSE DE BAYONNE"]
[null,"DIOCÈSE DE BEAUVAIS"]
[null,"DIOCÈSE DE BELFORT-MONTBELIARD"]
[null,"DIOCÈSE DE BELLEY-ARS"]
[null,"DIOCÈSE DE BESANCON"]
[null,"DIOCÈSE DE BLOIS"]
[null,"DIOCÈSE DE BORDEAUX"]
[null,"DIOCÈSE DE BOURGES"]
[null,"DIOCÈSE DE CAHORS"]
[null,"DIOCÈSE DE CAMBRAI"]
[null,"DIOCÈSE DE CARCASSONNE & NARBONNE"]
[null,"DIOCÈSE DE CHALONS EN CHAMPAGNE"]
[null,"DIOCÈSE DE CHAMBÉRY"]
[null,"DIOCÈSE DE CHARTRES"]
[null,"DIOCÈSE DE CLERMONT-FERRAND"]
[null,"DIOCÈSE DE COUTANCES"]
[null,"DIOCÈSE DE CRÉTEIL"]
[null,"DIOCÈSE DE DIGNE"]
[null,"DIOCÈSE DE DIJON"]
[null,"DIOCÈSE D'EVREUX"]
[null,"DIOCÈSE D'EVRY-CORBEIL-ESSONNES"]
[null,"DIOCÈSE DE FRÉJUS & TOULON"]
[null,"DIOCÈSE DE GAP & EMBRUN"]
[null,"DIOCÈSE DE GRENOBLE-VIENNE"]
[null,"DIOCÈSE DE GUADELOUPE"]
[null,"DIOCÈSE DE GUYANE"]
[null,"DIOCÈSE DE LA RÉUNION"]
[null,"DIOCÈSE DE LA ROCHELLE"]
[null,"DIOCÈSE DE LANGRES"]
[null,"DIOCÈSE DE LAVAL"]
[null,"DIOCÈSE DU HAVRE"]
[null,"DIOCÈSE DU MANS "]
[null,"DIOCÈSE DU PUY-EN-VELAY"]
[null,"DIOCÈSE DE LILLE"]
[null,"DIOCÈSE DE LIMOGES"]
[null,"DIOCÈSE DE LUÇON"]
[null,"DIOCÈSE DE LYON"]
[null,"DIOCÈSE DE MARSEILLE"]
[null,"DIOCÈSE DE MARTINIQUE"]
[null,"DIOCÈSE DE MAYOTTE"]
[null,"DIOCÈSE DE MEAUX"]
[null,"DIOCÈSE DE MENDE"]
[null,"DIOCÈSE DE METZ"]
[null,"DIOCÈSE DE MONTAUBAN"]
[null,"DIOCÈSE DE MONTPELLIER"]
[null,"DIOCÈSE DE MOULINS"]
[null,"DIOCÈSE DE NANCY"]
[null,"DIOCÈSE DE NANTERRE"]
[null,"DIOCÈSE DE NANTES"]
[null,"DIOCÈSE DE NEVERS"]
[null,"DIOCÈSE DE NICE"]
[null,"DIOCÈSE DE NIMES"]
[null,"DIOCÈSE DE NOUVELLE CALÉDONIE"]
[null,"DIOCÈSE D'ORLÉANS"]
[null,"DIOCÈSE DE PAMIERS"]
[null,"DIOCÈSE DE PARIS"]
[null,"DIOCÈSE DE PÉRIGUEUX"]
[null,"DIOCÈSE DE PERPIGNAN-ELNE"]
[null,"DIOCÈSE DE POITIERS"]
[null,"DIOCÈSE DE PONTOISE"]
[null,"DIOCÈSE DE QUIMPER"]
[null,"DIOCÈSE DE REIMS"]
[null,"DIOCÈSE DE RENNES"]
[null,"DIOCÈSE DE RODEZ"]
[null,"DIOCÈSE DE ROUEN "]
[null,"DIOCÈSE DE SAINT-BRIEUC"]
[null,"DIOCÈSE DE SAINT-CLAUDE"]
[null,"DIOCÈSE DE SAINT-DENIS"]
[null,"DIOCÈSE DE SAINT-DIÉ"]
[null,"DIOCÈSE DE SAINT-ÉTIENNE"]
[null,"DIOCÈSE DE SAINT-FLOUR"]
[null,"DIOCÈSE DE SÉES"]
[null,"DIOCÈSE DE SENS-AUXERRE"]
[null,"DIOCÈSE DE SOISSONS"]
[null,"DIOCÈSE DE STRASBOURG"]
[null,"DIOCÈSE DE TAHITI"]
[null,"DIOCÈSE DE TARBES-LOURDES"]
[null,"DIOCÈSE DE TOULOUSE"]
[null,"DIOCÈSE DE TOURS"]
[null,"DIOCÈSE DE TROYES"]
[null,"DIOCÈSE DE TULLE"]
[null,"DIOCÈSE DE VALENCE"]
[null,"DIOCÈSE DE VANNES"]
[null,"DIOCÈSE DE VERDUN"]
[null,"DIOCÈSE DE VERSAILLES"]
[null,"Vicariat apostolique de SPM"]
[null,"DIOCÈSE DE VIVIERS"]
[null,"DIOCÈSE DE WALLIS & FUTUNA"]

{"sheet":"Thèmes","index":15,"n_rows":11,"n_cols":2,"rows_kept":11,"cut":false,"hidden":true,"merged":[]}
[]
[null,"Sélectionner la thématique à laquelle est rattachée l'indicateur"]
[]
[null,"1. Ancrer son action au cœur du projet de l’Enseignement catholique "]
[null,"2. Construire la qualité de la relation "]
[null,"3. Envisager tout acte comme éducatif "]
[null,"4. Éduquer à la fraternité "]
[null,"5. Coordonner les actions pédagogiques"]
[null,"6. Penser les différents temps de vie"]
[null,"7. Réfléchir aux différents espaces"]
[null,"8. Se former pour prévenir, protéger et agir"]

{"sheet":"Obj","index":16,"n_rows":31,"n_cols":4,"rows_kept":31,"cut":false,"hidden":true,"merged":[]}
[]
[]
[null,"Obj. #1",null,1]
[]
[null,"Obj. #2",null,2]
[]
[null,"Obj. #3",null,3]
[]
[null,"Obj. #4",null,4]
[]
[null,"Obj. #5",null,5]
[]
[null,"Obj. #6",null,6]
[]
[null,"Obj. #7",null,7]
[]
[null,"Obj. #8",null,8]
[]
[null,"Obj. #9",null,9]
[]
[null,"Obj. #10",null,10]
[]
[null,"Obj. #11",null,11]
[]
[null,"Obj. #12",null,12]
[]
[null,"Obj. #13",null,13]
[]
[null,"Obj. #14",null,14]
[]
[null,"Obj. #15",null,15]

{"sheet":"Etat","index":17,"n_rows":6,"n_cols":2,"rows_kept":6,"cut":false,"hidden":true,"merged":[]}
[]
[null,"Sélectionner l'état d'avancement"]
[]
[null,"A faire"]
[null,"En cours"]
[null,"Atteint"]